bitfinex/quotes_SOLUSD_20240906
["timestamp","ask_amount","ask_price","bid_price","bid_amount"]
[1725632449515,7.6781,130.24,130.18,7.6816]
[1725632449715,7.6774,130.26,130.2,7.6803]
[1725632450029,1.84108487,130.29,130.18,26.8839]
[1725632450230,45.0,130.3,130.21,7.6798]
[1725632450421,7.6769,130.27,130.21,7.6798]
[1725632450940,45.0,130.3,130.19,0.84663383]
[1725632450941,7.6775,130.25,130.19,7.6805]
[1725632451231,1.91923021,130.29,130.18,20.04977571]
[1725632451232,19.1892,130.29,130.18,20.04977571]
[1725632451405,7.6767,130.27,130.18,20.04977571]
[1725632451600,7.6768,130.27,130.2,26.8799]
[1725632451846,7.6752,130.29,130.23,7.6781]
[1725632452005,7.6752,130.29,130.24,0.84499882]
[1725632452206,7.6752,130.29,130.23,7.6781]
[1725632452401,16.4514,130.3,130.22,20.04228311]
[1725632452630,7.6766,130.27,130.22,19.197]
[1725632452804,1.91918088,130.29,130.19,19.2023]
[1725632453009,16.4514,130.3,130.21,7.6797]
[1725632453010,7.6763,130.27,130.21,7.6797]
[1725632453231,7.6757,130.28,130.22,7.679]
[1725632453526,16.4514,130.3,130.21,19.1986]
[1725632453743,45.0,130.29,130.21,19.1986]
[1725632454234,7.6758,130.28,130.23,26.8743]
[1725632454714,7.6758,130.28,130.23,19.1957]
[1725632455126,7.6752,130.29,130.24,7.678]
[1725632455425,7.6752,130.29,130.24,8.52401373]
[1725632455624,25.6845,130.33,130.19,38.4047]
[1725632455625,7.6769,130.26,130.21,7.6794]
[1725632456106,1.91937393,130.32,130.22,19.1972]
[1725632456305,41.10367393,130.32,130.22,19.1972]
[1725632456502,7.6776,130.25,130.2,7.6804]
[1725632456732,7.6785,130.24,130.19,26.8829]
[1725632456932,7.6776,130.25,130.2,7.6803]
[1725632458139,1.91961221,130.24,130.16,19.2062]
[1725632458309,1.91961221,130.24,130.07,8.80991488]
[1725632458310,19.1988,130.22,130.1,19.2151]
[1725632458512,7.6818,130.18,130.13,7.6845]
[1725632458728,7.6818,130.18,130.14,7.6839]
[1725632458910,7.6812,130.19,130.15,7.6833]
[1725632459109,7.6817,130.18,130.14,26.893]
[1725632459310,19.2003,130.21,130.11,19.2138]
[1725632459530,7.6829,130.16,130.11,26.8995]
[1725632459709,7.6834,130.15,130.11,19.2138]
[1725632459919,19.2032,130.19,130.12,0.85008934]
[1725632460125,7.6827,130.17,130.12,7.6851]
[1725632460324,1.9207519,130.21,130.08,19.2179]
[1725632460534,7.6846,130.13,130.08,19.2179]
[1725632460833,7.6846,130.13,130.08,26.9052]
[1725632461029,19.2048,130.18,130.09,0.85117019]
[1725632461215,7.6833,130.16,130.11,7.6857]
[1725632461721,7.6836,130.15,130.1,26.9014]
[1725632461926,7.6806,130.2,130.12,19.2121]
[1725632462140,6.0633,130.22,130.09,88.4344]
[1725632462141,7.6802,130.21,130.14,19.2091]
[1725632462349,7.6799,130.21,130.16,7.6823]
[1725632462507,34.7448,130.24,130.11,19.2139]
[1725632462508,19.199,130.22,130.11,19.2139]
[1725632462841,15.5492,130.24,130.15,19.2076]
[1725632463009,7.6811,130.19,130.15,19.2076]
[1725632463207,15.5492,130.24,130.15,19.2076]
[1725632463432,21.11806068,130.23,130.12,26.897]
[1725632463630,21.11806068,130.23,130.1,7.6858]
[1725632463631,38.3965,130.22,130.1,7.6858]
[1725632463834,7.683,130.16,130.11,7.6857]
[1725632464107,7.6822,130.17,130.12,7.685]
[1725632464311,34.745,130.24,130.1,0.84989474]
[1725632464512,7.6812,130.19,130.14,7.6838]
[1725632464745,34.745,130.24,130.13,19.2106]
[1725632464746,34.745,130.24,130.13,0.84894061]
[1725632464913,15.5492,130.24,130.15,0.84894061]
[1725632465106,15.5492,130.24,130.17,19.2051]
[1725632465306,15.5492,130.24,130.2,7.6803]
[1725632465539,15.5492,130.24,130.12,65.0]
[1725632465745,1.92029611,130.23,130.15,7.6834]
[1725632465922,7.6811,130.19,130.14,7.6838]
[1725632466117,7.6811,130.19,130.13,19.2106]
[1725632466118,7.6817,130.18,130.13,26.895]
[1725632466439,7.6812,130.19,130.14,7.6838]
[1725632466730,21.11782401,130.23,130.15,19.2078]
[1725632466731,19.1973,130.23,130.15,19.2078]
[1725632466941,1.92030371,130.22,130.15,19.2078]
[1725632467112,21.11783155,130.23,130.12,45.0]
[1725632467314,7.68,130.21,130.16,7.6826]
[1725632467535,19.1973,130.23,130.16,7.6826]
[1725632468034,15.5492,130.24,130.17,7.6818]
[1725632468236,7.6786,130.24,130.17,0.84774103]
[1725632468440,17.71575246,130.3,130.24,7.6777]
[1725632468441,23.4701,130.3,130.24,7.6777]
[1725632468736,7.6774,130.26,130.19,20.04767033]
[1725632468941,7.6781,130.25,130.19,19.2023]
[1725632469140,19.1898,130.28,130.19,19.2023]
[1725632469441,7.6769,130.26,130.19,19.2023]
[1725632469816,17.71494785,130.3,130.19,19.2023]
[1725632470026,21.10839932,130.29,130.19,19.2023]
[1725632470414,21.10862133,130.29,130.19,19.2023]
[1725632470614,7.6769,130.27,130.19,19.2023]
[1725632470823,7.6769,130.27,130.2,45.0]
[1725632471127,7.677,130.26,130.19,20.04852962]
[1725632471313,7.6776,130.25,130.2,7.6799]
[1725632471513,7.6756,130.29,130.21,19.1984]
[1725632471827,15.7954,130.3,130.22,45.0]
[1725632472030,6.4762,130.32,130.24,7.6776]
[1725632472031,7.6751,130.29,130.24,7.6776]
[1725632472241,7.676,130.28,130.23,26.8745]
[1725632472418,6.4762,130.32,130.24,7.6781]
[1725632472619,6.4762,130.32,130.25,19.1929]
[1725632472819,1.91866601,130.35,130.27,7.6762]
[1725632473028,7.6753,130.29,130.24,7.678]
[1725632473519,1.91897427,130.28,130.15,88.4166]
[1725632473747,19.1903,130.28,130.18,19.2033]
[1725632474040,1.91959577,130.27,130.18,19.2033]
[1725632474247,19.1903,130.28,130.18,19.2033]
[1725632474450,7.6776,130.25,130.2,26.8807]
[1725632474622,1.919967,130.32,130.22,19.1975]
[1725632474623,19.1844,130.32,130.22,19.1975]
[1725632474819,19.1873,130.3,130.2,7.68]
[1725632475039,7.678,130.25,130.2,7.68]
[1725632475220,7.6785,130.24,130.19,26.883]
[1725632475643,64.19,130.28,130.19,19.2021]
[1725632475644,19.19,130.28,130.19,19.2021]
[1725632475841,45.0,130.27,130.19,19.2021]
[1725632476146,7.6781,130.24,130.19,19.2021]
[1725632476725,45.0,130.27,130.19,19.2021]
[1725632476726,7.6788,130.23,130.19,19.2021]
[1725632476927,7.6788,130.23,130.19,26.883]
[1725632477126,7.6782,130.24,130.19,26.883]
[1725632477519,1.91981629,130.26,130.16,19.2061]
[1725632477728,7.6793,130.22,130.17,7.6818]
[1725632477936,7.6793,130.22,130.18,7.6815]
[1725632478229,19.1887,130.29,130.18,0.84783207]
[1725632478424,7.6751,130.3,130.24,7.6776]
[1725632478726,16.0938,130.36,130.25,0.84514371]
[1725632478928,7.6735,130.32,130.28,7.6752]
[1725632479136,7.6729,130.33,130.28,7.6752]
[1725632479341,35.2723,130.36,130.27,7.6762]
[1725632479342,1.91844357,130.35,130.27,7.6762]
[1725632479834,35.2723,130.36,130.27,7.6762]
[1725632479835,37.19109756,130.36,130.27,7.6762]
[1725632480037,37.19109756,130.36,130.21,7.6797]
[1725632480038,7.677,130.26,130.21,7.6797]
[1725632480254,7.677,130.26,130.18,38.406]
[1725632480255,7.6764,130.27,130.23,7.6786]
[1725632480437,21.10678983,130.3,130.19,19.2018]
[1725632481050,7.6764,130.27,130.22,7.6791]
[1725632481252,19.1884,130.29,130.2,7.6804]
[1725632481451,19.1884,130.29,130.18,19.2032]
[1725632481452,7.6776,130.25,130.18,19.2032]
[1725632481761,19.1842,130.32,130.23,7.6786]
[1725632481958,1.91951067,130.33,130.19,19.2021]
[1725632481959,66.91944787,130.31,130.19,19.2021]
[1725632482139,19.1901,130.28,130.15,38.4145]
[1725632482342,7.6793,130.22,130.18,26.8851]
[1725632482660,19.193,130.26,130.13,7.32147262]
[1725632482661,21.1128617,130.26,130.13,7.32147262]
[1725632482988,7.6827,130.17,130.12,7.685]
[1725632483265,7.6817,130.18,130.13,7.6845]
[1725632483764,19.1989,130.22,130.14,0.84932503]
[1725632483765,7.6798,130.22,130.14,0.84932503]
[1725632483965,7.6781,130.24,130.18,19.2034]
[1725632484174,7.6781,130.24,130.19,7.6809]
[1725632484340,24.1334,130.25,130.2,7.6802]
[1725632484542,16.4558,130.25,130.15,19.2083]
[1725632484845,7.6806,130.2,130.16,7.6824]
[1725632485055,7.6806,130.2,130.15,19.2083]
[1725632485463,7.68,130.21,130.16,7.6827]
[1725632485765,16.4558,130.25,130.12,39.27122579]
[1725632485970,45.0,130.24,130.14,19.2096]
[1725632486150,7.6807,130.2,130.15,7.6832]
[1725632486358,7.68,130.21,130.14,20.05821663]
[1725632486970,7.6805,130.2,130.14,19.2096]
[1725632487274,7.6803,130.21,130.14,19.2096]
[1725632487479,7.6803,130.21,130.15,0.84838237]
[1725632487640,7.6794,130.22,130.16,19.2062]
[1725632487840,7.6794,130.22,130.17,7.682]
[1725632488071,35.6506,130.25,130.17,0.84785968]
[1725632488072,16.4558,130.25,130.17,0.84785968]
[1725632488249,24.1334,130.25,130.21,7.6796]
[1725632488445,10.0,130.36,130.17,0.84785968]
[1725632488446,7.6764,130.27,130.23,7.6787]
[1725632488747,7.6764,130.27,130.2,19.2006]
[1725632488963,15.92,130.31,130.21,0.84618898]
[1725632489265,7.6762,130.28,130.24,19.1948]
[1725632489471,15.92,130.31,130.21,19.199]
[1725632489472,17.83919086,130.31,130.21,19.199]
[1725632489678,7.6777,130.25,130.21,7.6798]
[1725632489856,7.6777,130.25,130.2,26.8809]
[1725632490052,7.6782,130.24,130.2,26.8809]
[1725632490246,19.1927,130.26,130.17,57.6157]
[1725632490443,7.6804,130.2,130.13,38.4222]
[1725632490662,1.92008083,130.25,130.14,19.2091]
[1725632490663,7.6818,130.18,130.14,19.2091]
[1725632490849,7.6812,130.19,130.14,19.2091]
[1725632491055,7.6806,130.2,130.14,19.2091]
[1725632491258,7.6806,130.2,130.15,7.683]
[1725632491883,7.6811,130.19,130.15,7.683]
[1725632492066,7.6811,130.19,130.14,19.2091]
[1725632492067,7.6811,130.19,130.14,26.8926]
[1725632492250,19.1986,130.22,130.11,19.2141]
[1725632492251,19.2018,130.2,130.11,19.2141]
[1725632492450,7.6829,130.16,130.11,26.8998]
[1725632492649,7.683,130.16,130.11,26.8998]
[1725632492886,36.62207906,130.2,130.11,26.8998]
[1725632493079,45.0,130.19,130.11,26.8998]
[1725632493257,7.6835,130.15,130.11,19.2141]
[1725632493451,7.6835,130.15,130.07,38.4395]
[1725632493452,1.92111488,130.17,130.09,7.6864]
[1725632493659,7.6858,130.11,130.06,7.6886]
[1725632493986,7.6881,130.07,130.02,8.5281051]
[1725632494157,1.92186958,130.1,130.02,8.5281051]
[1725632494158,1.92186958,130.1,130.02,20.0644051]
[1725632494353,19.2101,130.14,130.03,7.6903]
[1725632494564,7.6869,130.1,130.04,7.6898]
[1725632494880,45.0,130.17,130.02,20.9168438]
[1725632494881,7.6858,130.11,130.05,19.2233]
[1725632495080,1.92210159,130.16,130.05,19.2233]
[1725632495081,7.6869,130.1,130.05,19.2233]
[1725632495251,34.86118095,130.16,130.06,7.6887]
[1725632495579,7.6864,130.1,130.05,19.2233]
[1725632495776,7.6871,130.09,130.02,0.8371051]
[1725632495995,7.6864,130.1,130.04,7.6893]
[1725632496155,15.42731994,130.14,130.05,7.6892]
[1725632496352,52.6851,130.13,130.05,7.6892]
[1725632496764,7.6858,130.11,130.04,26.9142]
[1725632496972,45.0,130.13,130.02,0.8371051]
[1725632496973,46.92234437,130.1,130.02,0.8371051]
[1725632497178,1.92234437,130.1,130.02,8.5276051]
[1725632497481,15.5707,130.09,130.02,0.8371051]
[1725632497653,21.92302949,130.08,130.02,0.8371051]
[1725632497859,20.0,130.08,130.02,0.8371051]
[1725632498080,7.6893,130.05,130.02,0.8371051]
[1725632498268,58.28597282,130.07,130.02,0.8371051]
[1725632498470,7.689,130.06,130.02,0.8371051]
[1725632498678,58.28597282,130.07,130.02,8.5281051]
[1725632498870,58.28597282,130.07,130.02,0.8371051]
[1725632499065,13.28597282,130.07,130.02,0.8371051]
[1725632499274,13.28597282,130.07,130.02,8.5276051]
[1725632499574,13.28597282,130.07,130.05,7.689]
[1725632499881,15.5707,130.09,130.02,27.7543051]
[1725632499882,7.6881,130.08,130.02,27.7543051]
[1725632500057,23.2577,130.09,130.03,7.6902]
[1725632500257,13.85074061,130.11,130.09,7.6869]
[1725632500459,7.6851,130.13,130.07,7.688]
[1725632500664,7.684,130.14,130.06,19.2208]
[1725632500899,15.1458,130.15,130.11,7.6857]
[1725632501072,15.1458,130.15,130.08,19.2178]
[1725632501073,7.6847,130.13,130.08,19.2178]
[1725632501483,1.9216677,130.14,130.05,19.2231]
[1725632501662,1.9216677,130.14,130.02,0.8371051]
[1725632501663,1.9216677,130.14,130.02,1.68931523]
[1725632501862,7.6863,130.11,130.02,1.68931523]
[1725632502063,15.1458,130.15,130.02,1.68931523]
[1725632502064,7.6852,130.12,130.07,7.688]
[1725632502486,52.6858,130.11,130.06,7.6886]
[1725632502774,7.6864,130.1,130.05,26.9114]
[1725632502968,7.6876,130.08,130.02,20.0644051]
[1725632503176,1.92233098,130.1,130.03,7.6904]
[1725632503383,7.6881,130.08,130.03,7.6904]
[1725632504059,7.6881,130.08,130.02,20.0644051]
[1725632504060,1.922464,130.09,130.02,0.8371051]
[1725632504269,1.92293868,130.08,130.02,8.5280051]
[1725632504566,45.0,130.09,130.02,0.8371051]
[1725632504763,7.6876,130.08,130.03,7.6904]
[1725632505098,46.92249249,130.09,130.02,0.8371051]
[1725632505257,7.6888,130.06,130.02,0.8371051]
[1725632506493,7.6882,130.07,130.02,8.5277051]
[1725632506662,13.48079701,130.09,130.02,0.8371051]
[1725632506862,7.6887,130.07,130.02,0.8371051]
[1725632507062,7.6887,130.07,130.02,8.5280051]
[1725632507561,7.6877,130.08,130.03,7.6904]
[1725632507762,13.48079701,130.09,130.02,0.8371051]
[1725632507980,21.16819701,130.09,130.05,7.6892]
[1725632508265,13.48079701,130.09,130.04,19.2235]
[1725632508488,13.48079701,130.09,130.06,19.2207]
[1725632508656,17.06749127,130.15,130.06,19.2207]
[1725632508988,7.6861,130.11,130.07,7.6879]
[1725632509160,7.6861,130.11,130.06,19.2207]
[1725632509358,7.6861,130.11,130.06,26.9093]
[1725632509582,48.35519773,130.15,130.03,19.2257]
[1725632509583,7.6881,130.07,130.03,19.2257]
[1725632509783,1.92197643,130.1,130.02,0.8371051]
[1725632509784,7.6891,130.06,130.02,0.8371051]
[1725632509998,9.61211211,130.05,130.02,0.8371051]
[1725632510166,1.92276622,130.08,130.02,0.8371051]
[1725632510495,14.07853146,130.09,130.03,7.6904]
[1725632510665,45.0,130.08,130.02,8.5281051]
[1725632510867,45.0,130.08,130.03,7.69]
[1725632511087,14.07853146,130.09,130.04,7.6895]
[1725632511283,7.6879,130.08,130.04,7.6895]
[1725632511458,7.6881,130.07,130.03,26.9162]
[1725632511663,14.07853146,130.09,130.03,26.9162]
[1725632511664,7.6876,130.08,130.04,7.6898]
[1725632512195,7.6882,130.07,130.03,26.9161]
[1725632512485,14.19909235,130.11,130.03,19.2258]
[1725632512662,7.6876,130.08,130.04,7.6898]
[1725632512863,7.6884,130.07,130.03,19.2258]
[1725632513065,46.9223965,130.1,130.02,8.5280051]
[1725632513066,7.6905,130.03,130.02,0.8371051]
[1725632513264,7.6901,130.04,130.02,0.8371051]
[1725632513914,14.38781816,130.08,130.06,7.6887]
[1725632514075,1.92197813,130.14,130.06,19.2207]
[1725632514583,7.6862,130.11,130.06,26.9089]
[1725632514793,7.6865,130.1,130.06,26.9089]
[1725632515884,7.6864,130.1,130.06,26.9089]
[1725632516071,7.6871,130.09,130.03,19.2259]
[1725632516289,17.80232531,130.15,130.02,39.2904051]
[1725632516290,17.80232531,130.15,130.09,7.6869]
[1725632516475,7.6853,130.12,130.08,7.6875]
[1725632516794,7.6853,130.12,130.07,19.2195]
[1725632516970,7.6859,130.11,130.06,7.6885]
[1725632517382,1.92201739,130.13,130.04,26.9135]
[1725632517702,19.214,130.12,130.02,0.8371051]
[1725632517905,7.6881,130.07,130.03,7.6905]
[1725632518105,19.214,130.12,130.03,7.6905]
[1725632518296,45.0,130.11,130.04,7.6899]
[1725632518613,45.0,130.11,130.03,19.2248]
[1725632518808,45.0,130.11,130.05,7.6891]
[1725632519007,7.6871,130.09,130.04,7.6898]
[1725632519308,45.0,130.11,130.02,0.8371051]
[1725632519309,46.92223434,130.08,130.02,0.8371051]
[1725632519494,7.6905,130.03,130.02,0.8371051]
[1725632520415,7.6934,129.99,129.94,26.9343]
[1725632520633,7.693,129.99,129.94,26.934]
[1725632520913,21.15070823,130.03,129.93,7.6962]
[1725632521082,21.15070823,130.03,129.89,1.69332831]
[1725632521083,65.0,130.02,129.89,0.8371051]
[1725632521280,7.6954,129.95,129.89,0.8371051]
[1725632521589,19.2333,129.99,129.89,0.8371051]
[1725632521590,7.696,129.94,129.89,0.8371051]
[1725632521789,19.2333,129.99,129.92,7.6968]
[1725632522013,16.90036259,130.01,129.9,19.2443]
[1725632522217,21.85315163,130.01,129.91,0.85624756]
[1725632522389,7.6931,129.99,129.94,19.2383]
[1725632522805,16.08499045,130.01,129.91,19.2434]
[1725632523007,14.16145163,130.01,129.92,0.85682583]
[1725632523213,14.16145163,130.01,129.93,39.33796131]
[1725632523394,7.6935,129.98,129.93,7.6964]
[1725632523712,7.6935,129.98,129.89,39.3308051]
[1725632523713,14.16145163,130.01,129.91,19.2439]
[1725632523925,14.16145163,130.01,129.97,7.6938]
[1725632524092,14.16145163,130.01,129.91,0.85689499]
[1725632524287,15.8816,130.05,129.93,38.482]
[1725632524605,17.80452499,130.05,129.97,19.2337]
[1725632524913,7.6932,129.99,129.94,26.9349]
[1725632525088,7.6945,129.97,129.92,7.697]
[1725632525318,19.2319,130.0,129.88,19.2479]
[1725632525507,21.92427743,129.99,129.88,19.2479]
[1725632525710,45.0,129.98,129.9,19.2445]
[1725632526109,14.11003881,129.99,129.92,19.2412]
[1725632526330,14.11003881,129.99,129.93,0.85639282]
[1725632526730,14.11003881,129.99,129.95,7.6946]
[1725632526909,14.11003881,129.99,129.95,7.695]
[1725632527417,21.80313881,129.99,129.94,26.9339]
[1725632527725,7.6955,129.95,129.91,19.2437]
[1725632528036,14.11003881,129.99,129.91,19.2437]
[1725632528205,45.0,129.98,129.91,19.2437]
[1725632528409,14.11003881,129.99,129.91,19.2437]
[1725632528613,14.11003881,129.99,129.93,7.6964]
[1725632528838,14.11003881,129.99,129.89,0.8371051]
[1725632529044,16.03399643,129.99,129.92,19.242]
[1725632529338,7.6952,129.95,129.9,7.6979]
[1725632529517,7.6952,129.95,129.89,20.0837051]
[1725632529518,7.6952,129.95,129.91,7.6975]
[1725632529720,14.11003881,129.99,129.9,0.85771662]
[1725632529910,14.11003881,129.99,129.94,7.6957]
[1725632530110,14.11003881,129.99,129.95,26.9318]
[1725632530330,2.70411372,130.03,129.95,26.9318]
[1725632530532,19.2255,130.04,129.95,19.2368]
[1725632530713,19.2255,130.04,129.9,89.34601662]
[1725632530714,19.2287,130.02,129.92,19.2421]
[1725632531053,1.92360469,130.01,129.93,7.6963]
[1725632531336,14.15696447,130.04,129.96,19.2359]
[1725632531540,14.15696447,130.04,129.99,7.6923]
[1725632531720,14.15696447,130.04,129.94,0.85527745]
[1725632531925,14.15696447,130.04,130.0,7.6918]
[1725632532119,1.92290722,130.14,129.94,50.85527745]
[1725632532120,7.6887,130.07,129.94,50.85527745]
[1725632532339,7.6874,130.09,130.0,38.4615]
[1725632532512,7.6874,130.09,130.04,7.6893]
[1725632532707,7.6874,130.09,130.05,7.6893]
[1725632532909,16.5281,130.1,130.04,7.6898]
[1725632533930,7.6877,130.08,130.03,26.9159]
[1725632534440,7.687,130.09,130.04,7.6898]
[1725632534625,7.6878,130.08,130.03,26.9158]
[1725632534824,18.45039637,130.1,130.0,19.23]
[1725632535014,7.6895,130.05,130.0,26.9218]
[1725632535209,18.45086619,130.1,130.02,7.6907]
[1725632535425,16.5281,130.1,130.02,19.2269]
[1725632535748,35.745,130.1,130.02,26.9179]
[1725632536046,45.0,130.09,129.99,19.2316]
[1725632536218,7.6894,130.05,130.01,7.6915]
[1725632536417,45.0,130.09,130.01,19.2282]
[1725632536838,45.0,130.09,130.02,7.691]
[1725632536839,46.92241523,130.09,130.02,7.691]
[1725632537038,46.92241523,130.09,129.99,7.6924]
[1725632537039,7.6904,130.04,129.99,7.6924]
[1725632537218,7.6894,130.05,130.0,7.6917]
[1725632537734,7.6894,130.05,130.01,7.6916]
[1725632538123,7.6877,130.08,130.04,7.6897]
[1725632538522,7.6877,130.08,129.99,38.4621]
[1725632538523,7.6894,130.05,129.99,38.4621]
[1725632538724,7.6924,130.0,129.96,26.9304]
[1725632538921,7.6924,130.0,129.93,6.5279]
[1725632538922,7.6909,130.03,129.99,7.6927]
[1725632539142,7.6918,130.01,129.97,19.2349]
[1725632539318,7.6918,130.01,129.97,26.9288]
[1725632539520,7.6912,130.02,129.98,7.6933]
[1725632539739,7.6918,130.01,129.97,26.9288]
[1725632540053,1.92321436,130.04,129.89,50.8371051]
[1725632540054,7.6933,129.99,129.95,7.6946]
[1725632540252,7.6933,129.99,129.94,19.2387]
[1725632540253,7.693,129.99,129.94,26.934]
[1725632540462,7.693,129.99,129.94,19.2387]
[1725632540952,7.693,129.99,129.94,26.9344]
[1725632541154,7.693,129.99,129.95,7.6952]
[1725632541450,7.6924,130.0,129.96,7.6944]
[1725632541657,2.70547338,130.06,129.96,0.85539581]
[1725632541836,19.2186,130.09,130.0,19.2304]
[1725632542224,16.5281,130.1,130.02,19.2274]
[1725632542420,16.5281,130.1,130.01,45.0]
[1725632542620,16.5281,130.1,130.04,19.2245]
[1725632542830,7.688,130.08,130.04,19.2245]
[1725632543044,16.5281,130.1,130.04,19.2245]
[1725632543247,7.6853,130.12,130.07,7.6877]
[1725632543429,7.6853,130.12,130.06,19.2211]
[1725632543430,7.6852,130.12,130.06,19.2211]
[1725632543634,1.92157946,130.15,130.06,19.2211]
[1725632543941,40.7628,130.16,130.06,19.2211]
[1725632543942,1.92179404,130.14,130.06,19.2211]
[1725632544138,21.13279404,130.14,130.03,19.2257]
[1725632544333,14.14405002,130.15,130.04,0.85236823]
[1725632544534,7.6859,130.11,130.07,19.2192]
[1725632544738,7.6859,130.11,130.05,7.6893]
[1725632544961,7.6871,130.09,130.04,19.2245]
[1725632545131,7.6863,130.11,130.04,19.2245]
[1725632545540,21.13214919,130.14,130.04,19.2245]
[1725632545758,7.6876,130.08,130.02,7.6905]
[1725632545928,1.83782444,130.07,129.97,38.4676]
[1725632546132,19.2143,130.12,129.97,38.4676]
[1725632546133,7.6888,130.06,130.0,7.6918]
[1725632546355,7.6883,130.07,130.02,7.6909]
[1725632546645,7.6893,130.05,130.0,7.6921]
[1725632546953,21.13981961,130.1,129.99,7.6923]
[1725632547125,45.0,130.09,129.99,7.6923]
[1725632547332,1.92287553,130.08,129.99,7.6923]
[1725632547558,1.92287113,130.07,129.99,7.6923]
[1725632548059,7.6905,130.04,129.98,26.9268]
[1725632548262,7.6919,130.01,129.96,7.6942]
[1725632548557,7.6906,130.03,129.98,7.6931]
[1725632548765,7.6911,130.02,129.95,19.238]
[1725632549056,14.09583696,130.07,129.99,50.0]
[1725632549279,15.0598,130.12,130.07,7.688]
[1725632549438,15.0598,130.12,130.05,19.2221]
[1725632549639,7.687,130.09,130.03,7.6899]
[1725632549857,7.6864,130.1,130.02,19.2274]
[1725632550236,7.6864,130.1,129.98,58.98366817]
[1725632550237,7.6858,130.11,130.06,7.6883]
[1725632550432,37.0374607,130.18,130.06,19.2208]
[1725632550642,37.0374607,130.18,129.98,38.4666]
[1725632550643,19.2098,130.15,130.05,7.6887]
[1725632550854,14.07920548,130.17,130.06,57.48530347]
[1725632551058,21.76150548,130.17,130.12,7.6846]
[1725632551264,7.6814,130.19,130.08,0.85002386]
[1725632551437,1.9209254,130.21,130.11,7.6857]
[1725632551632,1.9209254,130.21,130.12,26.8969]
[1725632551633,7.6823,130.17,130.12,26.8969]
[1725632551849,1.92098274,130.2,130.12,26.8969]
[1725632552044,1.92098274,130.2,130.12,19.2119]
[1725632552361,38.4058,130.19,130.02,38.4551]
[1725632552559,38.4058,130.19,130.04,45.0]
[1725632552560,1.9215728,130.18,130.04,45.0]
[1725632552736,7.6852,130.12,130.07,7.6876]
[1725632553050,7.6852,130.12,130.06,19.2212]
[1725632553363,19.2078,130.16,130.07,7.688]
[1725632553364,7.6859,130.11,130.07,7.688]
[1725632553665,38.4058,130.19,130.06,19.2212]
[1725632553666,9.60869427,130.1,130.06,19.2212]
[1725632553836,1.92205953,130.13,130.05,7.6891]
[1725632554031,45.0,130.13,130.03,19.2256]
[1725632554234,45.0,130.13,130.05,19.2227]
[1725632554550,7.6859,130.11,130.06,7.6882]
[1725632554752,7.6859,130.11,130.07,7.6881]
[1725632554957,7.6853,130.12,130.07,7.6881]
[1725632555136,7.686,130.11,130.07,7.6881]
[1725632555350,14.86108771,130.18,130.08,0.85200581]
[1725632555554,7.6823,130.17,130.12,7.685]
[1725632555854,7.6823,130.17,130.13,7.6844]
[1725632556052,7.6818,130.18,130.14,7.684]
[1725632556480,7.6824,130.17,130.13,7.6844]
[1725632556783,7.6824,130.17,130.09,38.4325]
[1725632556784,7.6801,130.21,130.16,19.2069]
[1725632556976,19.1962,130.24,130.13,19.2106]
[1725632557357,7.6799,130.21,130.17,7.6821]
[1725632557560,7.6799,130.21,130.15,19.208]
[1725632557865,7.6807,130.2,130.15,26.8913]
[1725632558054,1.92040735,130.23,130.09,38.4325]
[1725632558055,21.11810735,130.23,130.12,19.2123]
[1725632558255,7.6821,130.18,130.13,7.6844]
[1725632558778,7.6827,130.17,130.12,26.8974]
[1725632559001,7.6817,130.18,130.13,7.6845]
[1725632559155,7.6809,130.2,130.14,7.6838]